bitfinex-derivatives/quotes_ETHF0:USTF0_20220103
["timestamp","ask_amount","ask_price","bid_price","bid_amount"]
[1641222604777,1.5,3792.5,3790.5,0.589]
[1641222604977,0.594,3792.5,3790.5,0.589]
[1641222605279,0.594,3792.3,3790.6,0.906]
[1641222605479,3.47192261,3791.1,3790.6,0.906]
[1641222605778,3.47192261,3791.1,3791.0,4.00958]
[1641222605978,4.11693961,3791.1,3791.0,4.00958]
[1641222606177,4.06592261,3791.1,3791.0,4.239571]
[1641222606377,3.47192261,3791.1,3791.0,4.00958]
[1641222606778,3.27770925,3791.2,3791.0,4.00958]
[1641222606980,3.82594116,3791.4,3791.1,1.135991]
[1641222607182,3.82594116,3791.4,3791.1,0.229991]
[1641222607378,3.48606069,3792.0,3791.1,0.229991]
[1641222607578,3.48606069,3792.0,3791.8,2.00479]
[1641222607779,0.128157,3791.9,3791.8,2.76449]
[1641222607979,3.48606069,3792.0,3791.8,2.994481]
[1641222608180,3.48606069,3792.0,3791.9,0.906]
[1641222608381,3.48606069,3792.0,3791.8,2.994481]
[1641222608382,3.82594116,3792.3,3791.8,3.900481]
[1641222608580,7.37939001,3792.9,3791.8,3.900481]
[1641222608581,3.21713066,3792.9,3791.8,3.900481]
[1641222608782,3.21713066,3792.9,3792.1,0.906]
[1641222608982,0.43934066,3792.9,3792.1,0.906]
[1641222609382,0.43934066,3792.9,3792.0,0.91769226]
[1641222609581,0.43934066,3792.9,3792.7,2.00479]
[1641222609885,1.15274808,3792.8,3792.7,2.00479]
[1641222610482,0.55874808,3792.8,3792.7,2.00479]
[1641222610785,1.20376508,3792.8,3792.7,2.00479]
[1641222610982,1.95796508,3792.8,3791.8,2.00479]
[1641222611183,0.594,3791.9,3791.8,1.16366295]
[1641222611383,1.3253,3791.9,3791.8,1.16366295]
[1641222611781,0.7313,3791.9,3791.8,1.39365395]
[1641222612183,2.00479,3792.7,3791.8,1.135991]
[1641222612386,2.00479,3792.7,3792.4,0.79105252]
[1641222612683,2.00479,3792.7,3792.5,0.229991]
[1641222612983,0.051017,3792.6,3791.8,0.5637]
[1641222613183,0.594,3792.6,3791.8,0.5637]
[1641222613385,1.58521612,3792.6,3791.8,0.5637]
[1641222613582,1.58521612,3792.6,3792.2,2.00479]
[1641222614386,0.594,3792.4,3792.2,2.00479]
[1641222614584,0.645017,3792.3,3792.2,2.00479]
[1641222614783,1.58521612,3792.6,3792.2,2.00479]
[1641222615185,0.99121612,3792.6,3792.2,2.00479]
[1641222615786,0.99121612,3792.6,3792.2,2.72529]
[1641222618691,0.594,3792.5,3792.2,2.72529]
[1641222618891,0.99121612,3792.6,3792.3,0.229991]
[1641222619693,0.645017,3792.5,3792.3,0.229991]
[1641222619892,0.645017,3792.5,3792.2,2.00479]
[1641222620093,0.594,3792.5,3792.2,2.00479]
[1641222620695,0.051017,3792.4,3792.2,0.21673465]
[1641222620893,0.051017,3792.4,3792.2,0.44672565]
[1641222621096,0.051017,3792.4,3792.2,0.21673465]
[1641222621298,0.99121612,3792.6,3792.2,0.21673465]
[1641222621796,0.594,3792.3,3791.4,2.79604078]
[1641222621996,2.30899614,3792.6,3791.4,2.79604078]
[1641222622396,2.30899614,3792.6,3791.4,2.00479]
[1641222622599,0.99121612,3792.6,3791.4,2.00479]
[1641222622796,0.99121612,3792.6,3791.8,0.79116268]
[1641222623597,0.99121612,3792.6,3791.9,2.00479]
[1641222623797,0.99121612,3792.6,3791.9,2.91079]
[1641222623996,0.594,3792.4,3791.9,2.00479]
[1641222625399,1.11937312,3792.6,3791.9,2.00479]
[1641222625601,0.99121612,3792.6,3791.9,2.00479]
[1641222625801,0.99121612,3792.6,3791.9,2.92156569]
[1641222626100,1.58521612,3792.6,3791.9,2.92156569]
[1641222626702,0.99121612,3792.6,3791.9,2.92156569]
[1641222626903,1.58521612,3792.6,3791.9,2.92156569]
[1641222627305,0.594,3792.5,3791.9,2.92156569]
[1641222627507,0.99121612,3792.6,3791.9,2.92156569]
[1641222627906,0.594,3792.5,3791.9,2.92156569]
[1641222628507,0.99121612,3792.6,3791.9,2.92156569]
[1641222629105,0.594,3792.5,3791.9,2.92156569]
[1641222629608,0.722157,3792.5,3791.9,2.92156569]
[1641222630009,0.594,3792.0,3791.2,5.50734964]
[1641222630309,0.594,3791.3,3791.2,2.50591139]
[1641222630513,1.401117,3791.3,3790.4,1.3206867]
[1641222630711,0.594,3790.6,3790.4,1.3206867]
[1641222630911,1.28849344,3790.6,3790.5,0.229991]
[1641222631113,0.69449344,3790.6,3790.5,0.229991]
[1641222631713,0.69449344,3790.6,3790.5,4.239571]
[1641222633316,0.69449344,3790.6,3790.5,4.00958]
[1641222633517,0.69449344,3790.6,3790.5,4.239571]
[1641222633916,0.70704487,3791.2,3790.5,4.239571]
[1641222635619,0.70704487,3791.2,3790.9,2.00479]
[1641222635820,0.051017,3791.1,3790.9,2.00479]
[1641222636018,0.70704487,3791.2,3790.9,2.234781]
[1641222636218,1.58214921,3791.7,3790.9,2.00479]
[1641222636719,1.58214921,3791.7,3791.0,0.79134713]
[1641222637320,0.594,3791.5,3791.0,0.79134713]
[1641222637922,0.722157,3791.5,3791.0,0.79134713]
[1641222638623,0.594,3791.3,3791.0,0.79134713]
[1641222639021,0.051017,3791.2,3791.0,0.79134713]
[1641222639224,0.128157,3791.5,3791.0,0.79134713]
[1641222639422,0.594,3791.1,3791.0,0.79134713]
[1641222639623,0.594,3791.1,3791.0,1.02133813]
[1641222639824,0.645017,3791.1,3791.0,0.79134713]
[1641222640224,0.645017,3791.1,3790.9,2.00479]
[1641222640424,1.353017,3791.1,3790.9,2.00479]
[1641222641625,0.051017,3791.0,3790.9,2.00479]
[1641222642025,0.051017,3791.0,3790.5,2.00479]
[1641222642429,0.594,3790.8,3790.5,2.00479]
[1641222642627,0.594,3790.8,3790.6,0.229991]
[1641222642827,1.28111511,3791.3,3790.6,0.229991]
[1641222643030,2.59879,3791.8,3791.1,0.906]
[1641222643229,4.3176359,3793.0,3791.1,0.906]
[1641222643433,0.594,3792.2,3791.4,0.79126097]
[1641222643631,0.594,3792.2,3791.4,1.45356097]
[1641222643829,0.722157,3792.2,3791.4,3.45835097]
[1641222644031,0.594,3791.8,3791.4,3.45835097]
[1641222644231,0.128157,3792.2,3791.4,3.45835097]
[1641222644831,0.594,3791.8,3791.4,3.45835097]
[1641222645033,0.128157,3792.2,3791.4,3.45835097]
[1641222645232,0.94819093,3792.2,3791.4,3.45835097]
[1641222645433,0.594,3791.8,3791.4,3.45835097]
[1641222645835,0.594,3792.1,3791.4,3.45835097]
[1641222646038,2.00479,3792.3,3791.5,0.906]
[1641222646635,2.132947,3792.3,3791.4,3.45835097]
[1641222646834,0.594,3792.2,3791.4,3.45835097]
[1641222647436,2.132947,3792.3,3791.4,3.45835097]
[1641222647637,0.594,3791.8,3791.4,3.45835097]
[1641222647837,2.132947,3792.3,3791.4,3.45835097]
[1641222648238,2.00479,3792.3,3791.9,0.79114241]
[1641222650537,1.21375021,3792.3,3791.9,0.79114241]
[1641222651743,2.00479,3792.7,3792.0,2.91079]
[1641222653041,3.0,3793.0,3792.2,0.906]
[1641222653240,3.0,3793.0,3792.2,2.86645516]
[1641222653442,3.0,3793.0,3792.5,0.906]
[1641222653643,0.594,3794.1,3792.9,0.906]
[1641222653846,2.00479,3793.8,3792.9,2.91079]
[1641222654241,0.525157,3793.6,3792.9,2.00479]
[1641222654541,0.594,3793.5,3792.9,2.00479]
[1641222654741,0.525157,3793.6,3792.9,2.00479]
[1641222655141,0.397,3793.6,3792.9,2.00479]
[1641222656244,0.397,3793.6,3793.1,0.79089523]
[1641222656544,2.00479,3793.8,3793.7,0.39378294]
[1641222656743,2.59879,3793.8,3793.7,0.62377394]
[1641222656946,2.649807,3793.8,3792.9,2.00479]
[1641222657145,2.59879,3793.8,3792.9,2.00479]
[1641222657544,0.594,3793.7,3792.9,2.00479]
[1641222657845,2.00479,3793.8,3792.9,2.00479]
[1641222658447,2.59879,3793.8,3792.9,2.00479]
[1641222658848,2.00479,3793.8,3792.9,2.00479]
[1641222660049,2.59879,3793.8,3792.9,2.00479]
[1641222660249,0.594,3793.6,3792.9,2.00479]
[1641222660652,0.594,3793.7,3792.9,2.00479]
[1641222660850,0.128157,3793.7,3792.9,2.00479]
[1641222661252,0.594,3793.6,3792.9,2.00479]
[1641222661452,0.128157,3793.7,3792.9,2.00479]
[1641222662254,0.722157,3793.7,3793.6,0.79079111]
[1641222662454,2.00479,3793.8,3793.6,1.02078211]
[1641222662654,2.00479,3793.8,3793.6,0.79079111]
[1641222664262,2.00479,3793.8,3793.7,0.229991]
[1641222664461,2.055807,3793.8,3793.6,0.79079111]
[1641222664663,2.00479,3793.8,3793.6,0.79079111]
[1641222664962,2.00479,3793.8,3793.7,0.229991]
[1641222665364,3.09875652,3794.2,3793.7,0.229991]
[1641222665765,2.00479,3794.2,3793.7,0.229991]
[1641222667367,0.594,3793.9,3793.7,0.229991]
[1641222667566,0.051017,3793.9,3793.7,0.229991]
[1641222667766,2.00479,3794.2,3793.7,0.229991]
[1641222668166,0.594,3793.8,3793.6,0.79079111]
[1641222668365,2.00479,3794.2,3793.6,0.79079111]
[1641222668366,2.00479,3794.2,3793.7,0.229991]
[1641222668568,2.00479,3794.2,3793.6,0.79079111]
[1641222671073,2.132947,3794.2,3794.1,4.37320559]
[1641222671272,2.777964,3794.2,3794.1,4.37320559]
[1641222671671,2.726947,3794.2,3794.1,4.37320559]
[1641222672769,2.59879,3794.2,3794.1,4.60319659]
[1641222672970,2.00479,3794.2,3794.1,4.60319659]
[1641222673172,2.00479,3794.2,3794.1,4.37320559]
[1641222673571,2.00479,3794.2,3794.1,4.60319659]
[1641222673773,2.00479,3794.2,3794.1,4.37320559]
[1641222674471,2.00479,3794.2,3794.1,4.60319659]
[1641222675471,2.59879,3794.2,3794.1,4.37320559]
[1641222676070,2.055807,3794.2,3794.1,4.37320559]
[1641222676472,2.00479,3794.2,3794.1,4.60319659]
[1641222676671,2.00479,3794.2,3794.1,4.37320559]
[1641222677172,2.055807,3794.2,3794.1,4.37320559]
[1641222677471,2.00479,3794.2,3794.1,4.60319659]
[1641222677675,4.09879,3794.2,3793.6,1.2008053]
[1641222677875,4.09879,3793.7,3792.8,0.89396745]
[1641222678074,0.594,3793.0,3792.8,0.89396745]
[1641222678274,0.051017,3792.9,3792.8,0.89396745]
[1641222678474,0.846217,3792.9,3792.8,0.89396745]
[1641222679378,0.974374,3792.9,3792.3,3.05027531]
[1641222679877,2.00479,3792.8,3792.3,1.04548531]
[1641222680077,0.594,3792.5,3792.3,1.04548531]
[1641222680281,0.594,3792.5,3792.4,0.229991]
[1641222680478,0.645017,3792.5,3792.3,1.04548531]
[1641222680677,0.594,3792.5,3792.3,1.04548531]
[1641222681079,0.594,3792.5,3791.9,2.00479]
[1641222681280,0.594,3792.5,3791.9,2.79594193]
[1641222681478,0.594,3792.4,3791.9,2.79594193]
[1641222681879,0.594,3792.7,3791.9,2.79594193]
[1641222682883,2.00479,3792.8,3791.9,2.79594193]
[1641222683279,0.594,3792.4,3791.9,2.79594193]
[1641222684479,0.594,3792.6,3791.9,2.79594193]
[1641222684680,0.594,3792.6,3792.5,0.90746129]
[1641222684880,2.00479,3792.8,3792.5,1.13745229]
[1641222685483,0.051017,3792.7,3792.5,1.13745229]
[1641222685682,0.594,3792.6,3792.5,0.90746129]
[1641222686181,2.00479,3792.8,3792.5,0.90746129]
[1641222686581,2.00479,3792.8,3792.6,0.229991]
[1641222686981,1.16553143,3792.8,3792.6,0.229991]
[1641222687781,1.21654843,3792.8,3792.0,0.6861]
[1641222687981,1.16553143,3792.8,3792.0,0.6861]
[1641222688183,0.594,3793.3,3792.2,1.31713434]
[1641222688381,2.00479,3793.7,3792.8,1.00711184]
[1641222688582,0.594,3793.2,3792.8,1.69411184]
[1641222689586,2.00479,3793.7,3792.8,1.69411184]
[1641222689986,2.00479,3793.3,3792.8,1.69411184]
[1641222690390,2.00479,3793.3,3792.8,3.01106751]
[1641222690592,2.00479,3793.3,3792.8,3.91706751]
[1641222691593,2.00479,3793.7,3792.8,3.91706751]
[1641222691992,2.00479,3793.7,3793.1,2.00479]
[1641222692191,2.00479,3793.7,3793.3,1.31677185]
[1641222692991,3.09875652,3794.3,3793.7,1.49611906]
[1641222693192,3.22691352,3794.3,3793.7,1.49611906]
[1641222693395,3.09875652,3794.3,3793.7,1.49611906]
[1641222693793,1.09396652,3794.3,3793.7,1.49611906]
[1641222693996,1.09396652,3794.3,3793.9,2.00479]
[1641222694194,0.30296652,3794.4,3793.9,2.00479]
[1641222696394,1.92583001,3794.7,3793.9,2.00479]
[1641222696595,0.55846169,3794.7,3793.9,2.00479]
[1641222697299,0.128157,3794.6,3793.9,2.00479]
[1641222697497,0.689757,3794.6,3793.9,2.00479]
[1641222698500,0.55846169,3794.5,3793.9,2.00479]
[1641222699401,1.5,3794.2,3793.1,2.89875745]
[1641222699802,1.5,3794.4,3793.1,2.89875745]
[1641222700101,2.00479,3794.3,3793.1,4.90354745]
[1641222701401,0.55846169,3794.2,3793.1,4.00958]
[1641222702202,0.55846169,3794.2,3793.8,2.00479]
[1641222702702,0.68661869,3794.2,3793.8,2.00479]
[1641222703201,0.55846169,3794.2,3793.8,2.00479]
[1641222703604,1.36736832,3794.6,3793.8,2.00479]
[1641222704605,0.128157,3794.5,3793.8,2.00479]
[1641222706405,0.55846229,3794.4,3793.8,2.00479]
[1641222710314,0.55846229,3794.4,3794.1,1.19499716]
[1641222710515,0.55846229,3794.4,3794.2,1.54645256]
[1641222710716,0.55846229,3794.4,3794.2,5.76335956]
[1641222712118,1.11739023,3795.2,3794.3,2.00479]
[1641222712317,0.128157,3795.1,3794.3,2.00479]
[1641222712919,0.128157,3795.1,3794.5,1.23409923]
[1641222713719,0.55846229,3795.0,3794.5,1.23409923]
[1641222714121,0.55846229,3795.0,3794.9,2.00479]
[1641222714317,0.60947929,3795.0,3794.9,2.00479]
[1641222714518,0.55846229,3795.0,3794.9,2.234781]
[1641222715418,1.11739023,3795.1,3795.0,0.60774581]
[1641222715823,1.11739023,3795.1,3794.9,2.00479]
[1641222716218,0.051017,3795.0,3794.9,2.00479]
[1641222716418,1.11739023,3795.2,3794.9,2.00479]
[1641222717020,0.051017,3795.1,3794.9,2.00479]
[1641222717419,1.11739023,3795.2,3794.9,2.00479]
[1641222718020,1.24554723,3795.3,3794.9,2.00479]
[1641222718220,1.11739023,3795.3,3794.9,2.00479]
[1641222719422,1.11739023,3795.4,3794.9,2.00479]
[1641222720022,1.11739023,3795.4,3795.0,4.215907]
[1641222720222,1.11739023,3795.4,3795.3,2.00479]
[1641222720423,1.11739023,3795.4,3795.3,2.975581]
[1641222720623,0.3888,3795.6,3795.3,2.975581]
[1641222722224,0.3888,3795.6,3795.5,2.00479]
[1641222722424,0.3888,3795.6,3795.5,2.234781]
[1641222722725,0.3888,3795.6,3795.5,2.00479]
[1641222723324,0.3888,3795.6,3795.5,2.234781]
[1641222723925,1.11739023,3795.9,3795.5,2.807481]
[1641222724125,1.11739023,3795.9,3795.7,1.56083117]
[1641222724328,1.11739023,3795.9,3795.8,0.229991]
[1641222725128,0.90539023,3795.9,3795.8,0.229991]
[1641222725327,0.64839023,3796.4,3795.8,0.229991]
[1641222725927,0.64839023,3796.4,3795.9,4.214852]
[1641222726327,0.64839023,3796.4,3796.3,2.00479]
[1641222726526,1.49552532,3796.7,3796.3,2.234781]
[1641222726729,0.128157,3796.7,3796.3,2.234781]
[1641222727127,1.36736832,3796.9,3796.3,2.234781]
[1641222728131,1.75586832,3797.0,3796.3,2.959181]
[1641222728528,0.128157,3796.9,3796.3,2.959181]
[1641222732737,0.3885,3797.0,3796.3,2.959181]
[1641222733840,0.3885,3797.0,3796.9,0.94813598]
[1641222734040,0.3885,3797.0,3796.9,1.17812698]
[1641222736244,0.128157,3797.3,3796.9,1.17812698]
[1641222736444,0.4027,3797.4,3797.0,2.00479]
[1641222737647,1.26949,3797.8,3797.0,2.00479]
[1641222738047,64.19837777,3798.6,3797.0,2.00479]
[1641222738248,2.61257777,3798.6,3797.0,2.00479]
[1641222738447,1.11257777,3798.6,3798.4,2.00479]
[1641222738648,0.179174,3798.5,3798.4,2.00479]
[1641222739247,0.128157,3798.5,3798.4,2.234781]
[1641222739447,0.179174,3798.5,3798.4,2.00479]
[1641222740247,0.179174,3798.5,3798.0,2.00479]
[1641222740748,1.5,3798.1,3797.0,32.39661557]
[1641222740948,1.5,3797.8,3797.0,32.39661557]
[1641222741148,1.5,3797.7,3797.0,0.94811557]
[1641222741350,0.7455,3797.7,3797.0,0.94811557]
[1641222741550,0.7455,3797.7,3797.2,0.88521003]
[1641222743353,2.132947,3797.8,3797.2,0.88521003]
[1641222744352,1.5,3797.7,3797.2,0.88521003]
[1641222745352,2.132947,3797.8,3797.2,0.88521003]
[1641222745353,3.632947,3797.8,3797.2,0.88521003]
[1641222746054,2.132947,3797.8,3797.2,0.88521003]
[1641222749560,3.632947,3797.8,3797.2,0.88521003]
[1641222749763,3.632947,3797.8,3796.9,1e-08]
[1641222749960,2.132947,3797.8,3796.0,33.90633449]
[1641222750160,1.5,3797.4,3796.0,33.90633449]
[1641222750359,2.00479,3796.8,3796.0,33.90633449]
[1641222750561,0.128157,3796.7,3796.0,1.31583449]
[1641222751561,2.00479,3796.8,3796.0,1.31583449]
[1641222753066,2.132947,3796.8,3796.0,1.31583449]
[1641222754472,2.00479,3796.8,3796.0,1.31583449]
[1641222755770,2.00479,3796.8,3796.1,4.214519]
[1641222755970,2.00479,3796.8,3796.5,1.31566656]
[1641222756171,2.00479,3796.8,3796.6,0.229991]
[1641222756974,2.055807,3796.8,3796.5,1.31566656]
[1641222757379,2.055807,3796.8,3796.6,0.229991]
[1641222757574,2.00479,3796.8,3796.6,0.229991]
[1641222758578,2.00479,3796.8,3796.4,1.31570465]
[1641222758775,0.051017,3796.7,3796.4,1.31570465]
[1641222758977,2.00479,3796.8,3796.5,0.229991]
[1641222759377,2.00479,3796.8,3796.4,1.31570465]
[1641222763082,2.00479,3796.8,3796.6,1.0098708]
[1641222763283,0.051017,3796.7,3796.6,1.0098708]
[1641222763684,0.580017,3796.7,3795.9,3.32066258]
[1641222764383,1.5,3796.4,3795.8,1.082186]
[1641222764584,1.5,3796.0,3795.0,1.36770654]
[1641222764784,1.08704185,3796.7,3796.4,1.17713029]
[1641222764985,1.5,3796.5,3795.0,3.72484284]
[1641222765188,1.5,3795.7,3795.0,3.72484284]
[1641222765386,0.128157,3795.6,3795.0,3.72484284]
[1641222766487,0.128157,3795.6,3795.1,0.89323278]
[1641222766787,2.00479,3795.2,3795.1,0.89323278]
[1641222766989,2.055807,3795.2,3795.1,0.89323278]
[1641222767387,2.055807,3795.2,3794.3,0.89323278]
[1641222768289,2.055807,3795.2,3794.4,1.87820141]
[1641222769490,2.055807,3795.2,3794.4,0.98496863]
[1641222771694,2.00479,3795.2,3794.4,0.98496863]
[1641222772695,2.00479,3794.6,3794.4,0.98496863]
[1641222772894,2.00479,3794.6,3794.5,0.229991]
[1641222774096,2.132947,3794.6,3794.2,0.89323278]
[1641222774295,2.850564,3794.6,3794.2,0.89323278]
[1641222774695,2.00479,3794.4,3794.2,0.89323278]
[1641222775097,0.051017,3794.3,3794.2,0.89323278]
[1641222775700,2.00479,3794.4,3794.2,1.12322378]
[1641222776098,2.00479,3794.4,3793.9,0.7281]
[1641222777299,0.4031,3795.7,3793.9,0.7281]
[1641222777300,2.50050904,3796.7,3794.3,1.5]
[1641222777500,2.50050904,3796.7,3795.2,0.94854481]
[1641222777701,2.50050904,3796.7,3795.2,1.74204481]
[1641222778101,1.68272723,3796.4,3795.2,1.74204481]
[1641222778500,0.128157,3795.7,3795.2,1.74204481]
[1641222778901,0.128157,3795.7,3795.2,3.74683481]
[1641222779301,1.12047101,3795.9,3795.2,3.74683481]
[1641222779704,2.00479,3796.1,3795.2,3.74683481]
[1641222780302,2.00479,3796.4,3795.2,3.74683481]
[1641222780905,2.00479,3796.4,3795.8,2.00479]
[1641222781104,0.128157,3796.3,3795.8,2.00479]
[1641222782407,1.5,3795.9,3795.2,2.00479]
[1641222782610,1.5,3795.4,3794.9,0.89323278]
[1641222782808,2.00479,3795.0,3794.9,0.89323278]
[1641222783008,3.683964,3795.0,3794.9,0.89323278]
[1641222783308,3.683964,3795.0,3794.4,0.89323278]
[1641222783706,2.183964,3795.0,3794.4,0.89323278]
[1641222783908,3.683964,3795.0,3794.4,0.89323278]
[1641222784309,3.683964,3795.0,3794.1,1.18487076]
[1641222784808,3.683964,3795.0,3793.9,2.00479]
[1641222785809,3.683964,3795.0,3793.9,2.89802278]
[1641222786409,1.5,3794.2,3793.9,0.89323278]
[1641222786610,1.679174,3794.1,3793.6,1.18487076]
[1641222786810,2.00479,3793.8,3793.3,1.48062189]
[1641222787809,2.00479,3793.8,3792.5,2.00479]
[1641222787810,3.50479,3793.8,3792.5,2.00479]
[1641222788017,1.5,3793.6,3792.5,2.00479]
[1641222788815,2.00479,3793.1,3792.5,2.00479]
[1641222789015,2.00479,3793.1,3792.7,1.48062189]
[1641222790315,2.00479,3793.1,3792.5,2.00479]
[1641222791015,0.128157,3793.2,3792.5,2.00479]
[1641222791817,4.00958,3793.8,3792.5,2.00479]
[1641222792418,4.00958,3793.8,3792.6,1.31707536]
[1641222792818,4.00958,3793.8,3793.0,2.00479]
[1641222793118,0.128157,3793.7,3793.0,2.00479]
[1641222797423,0.128157,3793.7,3792.7,0.79772461]
[1641222800832,2.00479,3793.2,3792.5,2.00479]
[1641222801029,3.50479,3793.2,3792.2,0.79109385]
[1641222801329,1.5,3793.0,3792.0,1.18132606]
[1641222801530,0.6254,3793.0,3792.0,1.18132606]
[1641222802129,0.6254,3793.0,3791.6,1.31727314]
[1641222802331,0.6254,3793.0,3791.8,2.79595363]
[1641222802530,2.00479,3793.2,3792.5,0.79102456]
[1641222802730,2.00479,3793.2,3792.5,1.46732456]
[1641222803833,1.11302371,3794.7,3793.1,1.31687243]
[1641222804036,1.31706842,3794.8,3793.3,0.79085166]
[1641222804233,1.31706842,3794.8,3793.9,0.79072915]
[1641222804934,2.00479,3794.5,3793.9,0.79072915]
[1641222806133,1.31687243,3795.3,3793.9,0.79072915]
[1641222806334,61.0826,3795.9,3794.6,0.79059081]
[1641222806534,1.31664703,3796.0,3794.6,1.36249081]
[1641222806735,1.11302371,3796.2,3794.6,1.36249081]
[1641222806934,2.00479,3795.6,3794.8,2.00479]
[1641222807135,0.128157,3795.5,3794.8,2.00479]
[1641222807535,2.00479,3795.6,3794.8,2.00479]
[1641222807738,2.00479,3795.6,3795.1,1.31620858]
[1641222807937,2.00479,3796.0,3795.3,0.79044439]
[1641222808939,2.00479,3796.0,3795.5,2.00479]
[1641222809140,2.00479,3796.7,3795.5,2.82359]
[1641222809342,2.00479,3796.7,3795.6,1.5]
[1641222809540,2.00479,3796.7,3796.0,0.79029896]
[1641222809740,1.11302371,3797.0,3796.0,0.79029896]
[1641222810343,1.11302371,3797.0,3796.0,2.10616981]
[1641222810542,1.11302371,3797.7,3796.0,2.10616981]
[1641222811042,1.11302371,3797.7,3796.8,2.00479]
[1641222811243,1.11302371,3797.7,3796.8,2.55559]
[1641222811642,0.128157,3797.6,3796.8,2.55559]
[1641222812945,0.128157,3797.6,3797.2,2.00479]
[1641222814746,0.128157,3797.6,3796.8,2.00479]
[1641222814944,2.00479,3797.5,3796.8,2.00479]
[1641222815946,1.5,3797.1,3795.9,1.31591933]
[1641222816144,1.5,3797.1,3795.5,1.31591934]
[1641222816145,1.5,3797.0,3795.1,0.79048324]
[1641222816746,0.7395,3797.1,3795.1,0.79048324]
[1641222816953,0.7395,3797.1,3795.7,0.79036779]
[1641222816954,2.00479,3796.5,3795.7,0.79036779]
[1641222817249,2.00479,3796.5,3796.3,0.79024275]
[1641222817449,2.00479,3796.5,3796.4,0.229991]
[1641222817648,2.055807,3796.5,3796.3,0.79024275]
[1641222817949,2.00479,3796.5,3796.3,0.79024275]
[1641222818250,2.00479,3797.5,3796.4,0.229991]
[1641222819049,2.00479,3797.5,3796.7,2.00479]
[1641222819250,0.128157,3797.4,3796.8,0.79011986]
[1641222819753,0.128157,3797.4,3796.7,2.00479]
[1641222826058,0.128157,3797.4,3796.9,0.79010384]
[1641222826259,2.00479,3797.5,3796.9,1.48710384]
[1641222827459,0.128157,3797.4,3796.9,1.48710384]
[1641222827659,2.00479,3797.5,3796.9,1.48710384]
[1641222829459,0.128157,3797.4,3796.9,1.48710384]
[1641222829660,2.00479,3797.5,3796.9,1.48710384]
[1641222830864,2.00479,3797.5,3797.4,0.79000372]
[1641222831063,2.055807,3797.5,3796.7,2.00479]
[1641222831261,2.00479,3797.5,3796.7,2.00479]
[1641222831662,2.00479,3797.5,3797.0,0.79009233]
[1641222831861,2.132947,3797.5,3797.0,0.79009233]
[1641222832864,2.00479,3797.5,3797.0,0.79009233]
[1641222833562,2.00479,3797.5,3796.7,2.00479]
[1641222833962,2.132947,3797.5,3796.7,2.00479]
[1641222834963,1.5,3797.1,3795.7,1.83412326]
[1641222835164,2.00479,3796.6,3795.7,2.95322774]
[1641222835364,2.63169,3796.6,3795.7,2.95322774]
[1641222835561,2.63169,3796.6,3795.7,5.76919903]
[1641222835764,0.6269,3796.6,3796.2,0.79025114]
[1641222836262,2.00479,3797.5,3796.2,0.79025114]
[1641222836463,2.00479,3797.5,3796.8,0.94816402]
[1641222836768,1.21483856,3797.5,3796.8,1.55506402]
[1641222837262,1.21483856,3797.5,3796.9,2.00479]
[1641222838565,2.00479,3798.2,3797.2,1.31547618]
[1641222842267,2.00479,3798.2,3797.3,0.79002043]
[1641222842671,0.128157,3798.1,3797.3,0.79002043]
[1641222846874,0.128157,3798.1,3796.8,0.94816402]
[1641222847074,1.31597302,3797.9,3796.8,0.94816402]
[1641222847273,2.00479,3797.0,3796.8,0.94816402]
[1641222847874,2.00479,3797.4,3796.8,0.94816402]
[1641222849476,2.00479,3797.9,3796.8,0.94816402]
[1641222850579,2.00479,3797.9,3797.2,0.79005131]
[1641222851180,0.128157,3797.8,3797.2,0.79005131]
[1641222852178,0.128157,3797.8,3797.1,2.00479]
[1641222852380,2.00479,3797.9,3797.1,2.00479]
[1641222852580,2.00479,3797.9,3797.4,1.31539486]
[1641222852783,2.00479,3797.9,3797.4,2.01549486]
[1641222855483,29.7332,3798.9,3797.4,3.51549486]
[1641222855682,32.0734,3799.2,3797.4,3.51549486]
[1641222856382,32.0734,3799.2,3797.4,2.01549486]
[1641222856583,32.0734,3799.2,3797.4,3.51549486]
[1641222856786,6.59302371,3799.9,3798.8,1.314895]
[1641222856985,1.11302371,3799.9,3798.8,2.038595]
[1641222857284,1.11302371,3799.9,3799.4,2.00479]
[1641222857485,0.127157,3799.8,3799.4,2.00479]
[1641222859690,0.835357,3799.8,3799.0,2.00479]
[1641222859890,0.835357,3799.8,3798.2,1.3151198]
[1641222861288,2.00479,3799.1,3798.2,3.3199098]
[1641222861492,0.128157,3799.0,3798.2,3.3199098]
[1641222861689,0.128157,3799.0,3798.3,0.001]
[1641222866794,2.00479,3799.1,3798.3,0.001]
[1641222867294,2.00479,3799.5,3798.6,2.00479]
[1641222867493,0.128157,3799.4,3798.6,2.00479]
[1641222869396,0.128157,3799.4,3799.0,2.00479]
[1641222869595,2.00479,3799.9,3799.0,2.00479]
[1641222869795,2.00479,3799.9,3799.1,1.31579127]
[1641222869996,2.132947,3799.9,3799.1,1.31579127]
[1641222870400,2.132947,3799.9,3799.1,1.31479127]
[1641222872599,2.132947,3799.9,3799.0,2.00479]
[1641222873000,2.132947,3799.9,3799.1,0.001]
[1641222873902,2.132947,3799.9,3799.0,2.00479]
[1641222875203,2.132947,3799.9,3799.1,0.001]
[1641222877707,2.00479,3799.9,3799.1,0.001]
[1641222878711,1.11302371,3801.0,3799.4,1.5]
[1641222878909,1.11302371,3801.0,3800.4,1.31437306]
[1641222879110,1.11302371,3801.0,3800.4,2.10047306]
[1641222879511,1.11302371,3801.0,3800.6,2.00479]
[1641222879911,1.11302371,3801.2,3800.9,1.31419169]
[1641222880112,1.11302371,3801.2,3801.0,0.229991]
[1641222880611,1.68272723,3801.7,3801.0,0.229991]
[1641222881512,1e-08,3802.0,3801.6,4.00958]
[1641222881711,92.6788,3803.9,3802.0,0.001]
[1641222881913,2.11387291,3803.2,3802.3,1.5]
[1641222882112,2.11387291,3803.2,3802.5,1.3135271]